fUST/lending_fUST_20250715
["ID","MTS","AMOUNT","RATE_DAILY","PERIOD"]
[372129218,1752532246527,-460.0,0.00021917,3]
[372129219,1752532246536,-460.0,0.00021917,3]
[372129220,1752532246545,-460.0,0.00022191,3]
[372129221,1752532246554,-378.47022634,0.00022191,3]
[372129222,1752532246564,-500.0,0.00022464,2]
[372129223,1752532246574,-233.74003007,0.00022464,2]
[372129224,1752532246583,-460.0,0.00022465,3]
[372129225,1752532246592,-2200.0,0.00022465,2]
[372129226,1752532246602,-500.0,0.00022738,2]
[372129227,1752532246611,-500.0,0.00022738,2]
[372129228,1752532246620,-460.0,0.00022739,3]
[372129229,1752532246629,-209.82208576,0.00022973,2]
[372129230,1752532246639,-14920.1121616,0.0002299,2]
[372129231,1752532246652,-462.17922788,0.0002299,2]
[372129232,1752532246666,-84617.70861052,0.0002299,2]
[372129233,1752532246676,-160.0,0.00023,3]
[372129234,1752532246685,-525.46609069,0.00023,3]
[372129235,1752532246694,-2168.48,0.00023,2]
[372129236,1752532246704,-160.0,0.00023,3]
[372129237,1752532246713,-525.46609069,0.00023,3]
[372129238,1752532246723,-230.73061749,0.00023,3]
[372129239,1752532246732,-9810.06450645,0.00023,2]
[372129240,1752532246743,-838.70323114,0.00023,3]
[372129241,1752532246754,-1418.9076181,0.00023003,8]
[372129242,1752532246763,-599.64,0.00023013,3]
[372129243,1752532246772,-460.0,0.00023013,3]
[372129244,1752532246782,-460.0,0.00023013,3]
[372129245,1752532246791,-460.0,0.00023013,3]
[372129246,1752532246800,-460.0,0.00023013,3]
[372129247,1752532246810,-460.0,0.00023013,3]
[372129248,1752532246819,-460.0,0.00023013,3]
[372129249,1752532246829,-460.0,0.00023013,3]
[372129250,1752532246839,-460.0,0.00023013,3]
[372129251,1752532246848,-440.4016656,0.00023013,3]
[372129252,1752532246857,-460.0,0.00023013,3]
[372129253,1752532246867,-849.55,0.00023013,3]
[372129254,1752532246876,-460.0,0.00023013,3]
[372129255,1752532246886,-470.65,0.00023013,3]
[372129256,1752532246896,-460.0,0.00023013,3]
[372129257,1752532246906,-460.0,0.00023013,3]
[372129258,1752532246915,-4225.54,0.00023013,3]
[372129259,1752532246924,-460.0,0.00023013,3]
[372129260,1752532246933,-460.0,0.00023013,3]
[372129261,1752532246942,-546.50156967,0.00023013,3]
[372129262,1752532246951,-460.0,0.00023013,3]
[372129263,1752532246961,-460.0,0.00023013,3]
[372129264,1752532246970,-2685.53,0.00023013,3]
[372129265,1752532246979,-460.0,0.00023013,3]
[372129266,1752532246988,-353.6,0.00023013,3]
[372129267,1752532246997,-460.0,0.00023013,3]
[372129268,1752532247006,-485.57,0.00023013,3]
[372129269,1752532247015,-460.0,0.00023013,3]
[372129270,1752532247024,-469.39,0.00023013,3]
[372129271,1752532247033,-460.0,0.00023013,3]
[372129272,1752532247044,-6892.34,0.00023013,3]
[372129273,1752532247054,-181.32,0.00023013,3]
[372129274,1752532247064,-460.0,0.00023013,3]
[372129275,1752532247074,-460.0,0.00023013,3]
[372129276,1752532247084,-460.0,0.00023013,3]
[372129277,1752532247093,-460.0,0.00023013,3]
[372129278,1752532247103,-460.0,0.00023013,3]
[372129279,1752532247112,-460.0,0.00023013,3]
[372129280,1752532247129,-460.0,0.00023013,3]
[372129281,1752532247143,-3108.77,0.00023013,3]
[372129282,1752532247153,-460.0,0.00023013,3]
[372129283,1752532247163,-460.0,0.00023013,3]
[372129284,1752532247173,-460.0,0.00023013,3]
[372129285,1752532247182,-460.0,0.00023013,3]
[372129286,1752532247192,-2811.79,0.00023013,3]
[372129287,1752532247202,-4740.55,0.00023013,3]
[372129288,1752532247212,-460.0,0.00023013,3]
[372129289,1752532247222,-460.0,0.00023013,3]
[372129290,1752532247231,-460.0,0.00023013,3]
[372129291,1752532247242,-460.0,0.00023013,3]
[372129292,1752532247251,-587.69,0.00023013,3]
[372129293,1752532247262,-1277.88,0.00023013,3]
[372129294,1752532247272,-1083.81,0.00023013,3]
[372129295,1752532247282,-460.0,0.00023013,3]
[372129296,1752532247292,-547.91,0.00023013,3]
[372129297,1752532247302,-561.49,0.00023013,3]
[372129298,1752532247312,-699.67,0.00023013,3]
[372129299,1752532247321,-460.0,0.00023013,3]
[372129300,1752532247332,-460.0,0.00023013,3]
[372129301,1752532247341,-780.27,0.00023013,3]
[372129302,1752532247351,-480.78,0.00023013,3]
[372129303,1752532247361,-460.0,0.00023013,3]
[372129304,1752532247370,-460.0,0.00023013,3]
[372129305,1752532247380,-867.48,0.00023013,3]
[372129306,1752532247391,-1633.31,0.00023013,3]
[372129307,1752532247401,-462.27,0.00023013,3]
[372129308,1752532247410,-4080.15,0.00023013,3]
[372129309,1752532247420,-695.48,0.00023013,3]
[372129310,1752532247430,-2062.19,0.00023013,3]
[372129311,1752532247439,-694.43,0.00023013,3]
[372129312,1752532247449,-460.0,0.00023013,3]
[372129313,1752532247460,-551.7,0.00023013,3]
[372129314,1752532247469,-3466.55,0.00023013,3]
[372129315,1752532247479,-840.62,0.00023013,3]
[372129316,1752532247488,-476.17,0.00023013,3]
[372129317,1752532247498,-2617.13,0.00023013,3]
[372129318,1752532247507,-460.0,0.00023013,3]
[372129319,1752532247517,-460.0,0.00023013,3]
[372129320,1752532247526,-499.24,0.00023013,3]
[372129321,1752532247536,-460.0,0.00023013,3]
[372129322,1752532247545,-2264.69,0.00023013,3]
[372129323,1752532247555,-460.0,0.00023013,3]
[372129324,1752532247565,-460.0,0.00023013,3]
[372129325,1752532247574,-460.0,0.00023013,3]
[372129326,1752532247701,-703.76,0.00023013,3]
[372129327,1752532247711,-801.47,0.00023013,3]
[372129328,1752532247722,-537.34,0.00023013,3]
[372129329,1752532247733,-5277.36,0.00023013,3]
[372129330,1752532247745,-151.0,0.00023013,7]
[372129331,1752532247754,-460.0,0.00023013,3]
[372129332,1752532247764,-460.0,0.00023013,3]
[372129333,1752532247774,-634.32,0.00023013,3]
[372129334,1752532247783,-460.0,0.00023013,3]
[372129335,1752532247792,-979.14,0.00023013,3]
[372129336,1752532247807,-585.2,0.00023013,3]
[372129337,1752532247818,-460.0,0.00023013,3]
[372129338,1752532247828,-593.07,0.00023013,3]
[372129339,1752532247837,-460.0,0.00023013,3]
[372129340,1752532247846,-460.0,0.00023013,3]
[372129341,1752532247856,-460.0,0.00023013,3]
[372129342,1752532247865,-500.97108494,0.00023021,2]
[372129343,1752532247875,-1003.64477649,0.00023021,2]
[372129344,1752532247884,-1000.0,0.00023021,2]
[372129345,1752532247894,-1000.0,0.00023021,2]
[372129346,1752532247903,-502.7242383,0.00023021,2]
[372129347,1752532247912,-1000.0,0.00023021,2]
[372129348,1752532247921,-1000.0,0.00023021,2]
[372129349,1752532247930,-1000.0,0.00023021,2]
[372129350,1752532247939,-1000.0,0.00023021,2]
[372129351,1752532247949,-1010.91423198,0.00023021,2]
[372129352,1752532247958,-500.0,0.00023021,2]
[372129353,1752532247968,-1000.0,0.00023021,2]
[372129354,1752532247978,-420.0,0.00023055,2]
[372129355,1752532247987,-505.92,0.0002306,5]
[372129356,1752532247996,-1000.0,0.00023068,2]
[372129357,1752532248006,-500.0,0.00023068,2]
[372129358,1752532248015,-1500.0,0.00023068,2]
[372129359,1752532248025,-151.0,0.000231,10]
[372129360,1752532248034,-1418.9076181,0.00023141,8]
[372129361,1752532248043,-505.92,0.0002316,6]
[372129362,1752532248053,-160.0,0.00023175,2]
[372129363,1752532248062,-150.0,0.00023177,2]
[372129364,1752532248072,-27689.1,0.000232,7]
[372129365,1752532248081,-505.92,0.0002326,5]
[372129366,1752532248091,-1418.9076181,0.00023279,8]
[372129367,1752532248101,-599.64,0.00023287,3]
[372129368,1752532248110,-460.0,0.00023287,3]
[372129369,1752532248120,-460.0,0.00023287,3]
[372129370,1752532248129,-460.0,0.00023287,3]
[372129371,1752532248139,-460.0,0.00023287,3]
[372129372,1752532248148,-350.09,0.00023287,3]
[372129373,1752532248163,-460.0,0.00023287,3]
[372129374,1752532248173,-294.57498993,0.00023287,3]
[372129375,1752532248183,-586.01,0.00023287,3]
[372129376,1752532248193,-849.55,0.00023287,3]
[372129377,1752532248204,-460.0,0.00023287,3]
[372129378,1752532248215,-470.65,0.00023287,3]
[372129379,1752532248225,-460.0,0.00023287,3]
[372129380,1752532248235,-500.0,0.00023287,3]
[372129381,1752532248245,-4225.54,0.00023287,3]
[372129382,1752532248255,-508.69,0.00023287,3]
[372129383,1752532248265,-460.0,0.00023287,3]
[372129384,1752532248274,-2685.53,0.00023287,3]
[372129385,1752532248284,-460.0,0.00023287,3]
[372129386,1752532248293,-469.39,0.00023287,3]
[372129387,1752532248303,-460.0,0.00023287,3]
[372129388,1752532248312,-6892.34,0.00023287,3]
[372129389,1752532248322,-196.23,0.00023287,3]
[372129390,1752532248332,-527.69,0.00023287,3]
[372129391,1752532248342,-460.0,0.00023287,3]
[372129392,1752532248351,-460.0,0.00023287,3]
[372129393,1752532248361,-460.0,0.00023287,3]
[372129394,1752532248371,-460.0,0.00023287,3]
[372129395,1752532248380,-460.0,0.00023287,3]
[372129396,1752532248390,-3108.77,0.00023287,3]
[372129397,1752532248399,-460.0,0.00023287,3]
[372129398,1752532248412,-460.0,0.00023287,3]
[372129399,1752532248422,-460.0,0.00023287,3]
[372129400,1752532248431,-460.0,0.00023287,3]
[372129401,1752532248441,-2811.79,0.00023287,3]
[372129402,1752532248451,-4740.55,0.00023287,3]
[372129403,1752532248461,-460.0,0.00023287,3]
[372129404,1752532248470,-460.0,0.00023287,3]
[372129405,1752532248480,-168.05,0.00023287,3]
[372129406,1752532248490,-460.0,0.00023287,3]
[372129407,1752532248499,-587.69,0.00023287,3]
[372129408,1752532248508,-1277.88,0.00023287,3]
[372129409,1752532248518,-1083.81,0.00023287,3]
[372129410,1752532248528,-460.0,0.00023287,3]
[372129411,1752532248537,-547.91,0.00023287,3]
[372129412,1752532248547,-561.49,0.00023287,3]
[372129413,1752532248558,-699.67,0.00023287,3]
[372129414,1752532248568,-460.0,0.00023287,3]
[372129415,1752532248578,-460.0,0.00023287,3]
[372129416,1752532248588,-780.27,0.00023287,3]
[372129417,1752532248598,-480.78,0.00023287,3]
[372129418,1752532248607,-460.0,0.00023287,3]
[372129419,1752532248620,-867.48,0.00023287,3]
[372129420,1752532248629,-460.0,0.00023287,3]
[372129421,1752532248639,-1633.31,0.00023287,3]
[372129422,1752532248649,-462.27,0.00023287,3]
[372129423,1752532248660,-4080.15,0.00023287,3]
[372129424,1752532248675,-695.48,0.00023287,3]
[372129425,1752532248685,-2062.19,0.00023287,3]
[372129426,1752532248695,-694.43,0.00023287,3]
[372129427,1752532248704,-460.0,0.00023287,3]
[372129428,1752532248714,-551.7,0.00023287,3]
[372129429,1752532248724,-3466.55,0.00023287,3]
[372129430,1752532248734,-840.62,0.00023287,3]
[372129431,1752532248744,-476.17,0.00023287,3]
[372129432,1752532248753,-2617.13,0.00023287,3]
[372129433,1752532248763,-460.0,0.00023287,3]
[372129434,1752532248773,-460.0,0.00023287,3]
[372129435,1752532248783,-499.24,0.00023287,3]
[372129436,1752532248792,-460.0,0.00023287,3]
[372129437,1752532248802,-2264.69,0.00023287,3]
[372129438,1752532248812,-460.0,0.00023287,3]
[372129439,1752532248821,-460.0,0.00023287,3]
[372129440,1752532248831,-460.0,0.00023287,3]
[372129441,1752532248840,-703.76,0.00023287,3]
[372129442,1752532248850,-801.47,0.00023287,3]
[372129443,1752532248859,-537.34,0.00023287,3]
[372129444,1752532248869,-5277.36,0.00023287,3]
[372129445,1752532248879,-460.0,0.00023287,3]
[372129446,1752532248888,-460.0,0.00023287,3]
[372129447,1752532248897,-460.0,0.00023287,3]
[372129448,1752532248909,-979.14,0.00023287,3]
[372129449,1752532248919,-585.2,0.00023287,3]
[372129450,1752532248929,-634.32,0.00023287,3]
[372129451,1752532248938,-460.0,0.00023287,3]
[372129452,1752532248948,-593.07,0.00023287,3]
[372129453,1752532248957,-460.0,0.00023287,3]
[372129454,1752532248966,-460.0,0.00023287,3]
[372129455,1752532248976,-460.0,0.00023287,3]
[372129456,1752532248985,-900.01,0.000233,7]
[372129457,1752532248995,-278.55719364,0.00023321,2]
[372129458,1752532249005,-500.0,0.00023338,2]
[372129459,1752532249016,-500.0,0.00023338,2]
[372129460,1752532249026,-505.92,0.0002336,4]
[372129461,1752532249035,-151.0,0.000234,6]
[372129462,1752532249045,-1418.9076181,0.00023417,9]
[372129463,1752532249054,-505.92,0.0002346,5]
[372129464,1752532249067,-1500.0,0.00023502,2]
[372129465,1752532249077,-1705.78534178,0.00023506,2]
[372129466,1752532249087,-500.0,0.00023521,2]
[372129467,1752532249097,-500.0,0.00023544,2]
[372129468,1752532249107,-1418.9076181,0.00023555,9]
[372129469,1752532249116,-505.92,0.0002356,5]
[372129470,1752532249126,-599.64,0.00023561,3]
[372129471,1752532249136,-460.0,0.00023561,3]
[372129472,1752532249145,-460.0,0.00023561,3]
[372129473,1752532249156,-460.0,0.00023561,3]
[372129474,1752532249166,-460.0,0.00023561,3]
[372129475,1752532249175,-849.55,0.00023561,3]
[372129476,1752532249185,-460.0,0.00023561,3]
[372129477,1752532249194,-470.65,0.00023561,3]
[372129478,1752532249204,-460.0,0.00023561,3]
[372129479,1752532249214,-4225.54,0.00023561,3]
[372129480,1752532249223,-460.0,0.00023561,3]
[372129481,1752532249233,-2685.53,0.00023561,3]
[372129482,1752532249242,-460.0,0.00023561,3]
[372129483,1752532249252,-469.39,0.00023561,3]
[372129484,1752532249262,-460.0,0.00023561,3]
[372129485,1752532249272,-6892.34,0.00023561,3]
[372129486,1752532249282,-460.0,0.00023561,3]
[372129487,1752532249292,-460.0,0.00023561,3]
[372129488,1752532249302,-460.0,0.00023561,3]
[372129489,1752532249312,-460.0,0.00023561,3]
[372129490,1752532249322,-460.0,0.00023561,3]
[372129491,1752532249331,-3108.77,0.00023561,3]
[372129492,1752532249342,-460.0,0.00023561,3]
[372129493,1752532249351,-460.0,0.00023561,3]
[372129494,1752532249360,-460.0,0.00023561,3]
[372129495,1752532249370,-2811.79,0.00023561,3]
[372129496,1752532249467,-4740.55,0.00023561,3]
[372129497,1752532249477,-460.0,0.00023561,3]
[372129498,1752532249488,-460.0,0.00023561,3]
[372129499,1752532249497,-460.0,0.00023561,3]
[372129500,1752532249506,-587.69,0.00023561,3]
[372129501,1752532249516,-1277.88,0.00023561,3]
[372129502,1752532249525,-1083.81,0.00023561,3]
[372129503,1752532249535,-460.0,0.00023561,3]
[372129504,1752532249544,-547.91,0.00023561,3]
[372129505,1752532249554,-561.49,0.00023561,3]
[372129506,1752532249563,-699.67,0.00023561,3]
[372129507,1752532249573,-460.0,0.00023561,3]
[372129508,1752532249582,-460.0,0.00023561,3]
[372129509,1752532249592,-780.27,0.00023561,3]
[372129510,1752532249603,-480.78,0.00023561,3]
[372129511,1752532249621,-460.0,0.00023561,3]
[372129512,1752532249631,-867.48,0.00023561,3]
[372129513,1752532249640,-460.0,0.00023561,3]
[372129514,1752532249662,-1633.31,0.00023561,3]
[372129515,1752532249675,-462.27,0.00023561,3]
[372129516,1752532249684,-4080.15,0.00023561,3]
[372129517,1752532249694,-695.48,0.00023561,3]
[372129518,1752532249703,-2062.19,0.00023561,3]
[372129519,1752532249714,-694.43,0.00023561,3]
[372129520,1752532249723,-460.0,0.00023561,3]
[372129521,1752532249732,-551.7,0.00023561,3]
[372129522,1752532249742,-3466.55,0.00023561,3]
[372129523,1752532249751,-840.62,0.00023561,3]
[372129524,1752532249762,-476.17,0.00023561,3]
[372129525,1752532249771,-2617.13,0.00023561,3]
[372129526,1752532249781,-460.0,0.00023561,3]
[372129527,1752532249790,-460.0,0.00023561,3]
[372129528,1752532249800,-499.24,0.00023561,3]
[372129529,1752532249809,-460.0,0.00023561,3]
[372129530,1752532249818,-2264.69,0.00023561,3]
[372129531,1752532249828,-460.0,0.00023561,3]
[372129532,1752532249838,-155.69,0.00023561,3]
[372129533,1752532249847,-363.96,0.00023561,3]
[372129534,1752532249856,-703.76,0.00023561,3]
[372129535,1752532249866,-801.47,0.00023561,3]
[372129536,1752532249875,-537.34,0.00023561,3]
[372129537,1752532249884,-5277.36,0.00023561,3]
[372129538,1752532249894,-460.0,0.00023561,3]
[372129539,1752532249906,-979.14,0.00023561,3]
[372129540,1752532249915,-585.2,0.00023561,3]
[372129541,1752532249925,-634.32,0.00023561,3]
[372129542,1752532249934,-460.0,0.00023561,3]
[372129543,1752532249944,-593.07,0.00023561,3]
[372129544,1752532249953,-460.0,0.00023561,3]
[372129545,1752532249963,-460.0,0.00023561,3]
[372129546,1752532249972,-460.0,0.00023561,3]
[372129547,1752532249982,-272.37239892,0.00023562,10]
[372129548,1752532249991,-1500.0,0.00023568,2]
[372129550,1752532250000,-501.05779437,0.00023568,2]
[372129552,1752532250009,-1500.0,0.00023568,2]
[372129553,1752532250019,-1500.0,0.00023568,2]
[372129554,1752532250028,-500.77879044,0.00023568,2]
[372129555,1752532250037,-3007.39,0.000236,7]
[372129556,1752532250047,-2000.0,0.00023616,2]
[372129557,1752532250056,-505.92,0.0002366,4]
[372129558,1752532250068,-1418.9076181,0.00023693,9]
[372129559,1752532250077,-30110.13,0.000237,2]
[372129560,1752532250087,-260.0,0.00023723,2]
[372129561,1752532250100,-300.0,0.00023725,2]
[372129562,1752532250110,-505.92,0.0002376,4]
[372129563,1752532250119,-151.0,0.000238,6]
[372129564,1752532250128,-560.43858215,0.00023803,2]
[372129565,1752532250138,-1418.9076181,0.00023831,10]
[372129566,1752532250148,-599.64,0.00023835,3]
[372129567,1752532250158,-460.0,0.00023835,3]
[372129568,1752532250167,-323.89491797,0.00023835,3]
[372129569,1752532250176,-460.0,0.00023835,3]
[372129570,1752532250186,-849.55,0.00023835,3]
[372129571,1752532250195,-460.0,0.00023835,3]
[372129572,1752532250204,-470.65,0.00023835,3]
[372129573,1752532250215,-460.0,0.00023835,3]
[372129574,1752532250225,-4225.54,0.00023835,3]
[372129575,1752532250235,-460.0,0.00023835,3]
[372129576,1752532250245,-2685.53,0.00023835,3]
[372129577,1752532250255,-460.0,0.00023835,3]
[372129578,1752532250264,-469.39,0.00023835,3]
[372129579,1752532250274,-6892.34,0.00023835,3]
[372129580,1752532250284,-460.0,0.00023835,3]
[372129581,1752532250293,-460.0,0.00023835,3]
[372129582,1752532250302,-460.0,0.00023835,3]
[372129583,1752532250312,-460.0,0.00023835,3]
[372129584,1752532250321,-460.0,0.00023835,3]
[372129585,1752532250331,-460.0,0.00023835,3]
[372129586,1752532250340,-3108.77,0.00023835,3]
[372129587,1752532250349,-460.0,0.00023835,3]
[372129588,1752532250359,-460.0,0.00023835,3]
[372129589,1752532250369,-2811.79,0.00023835,3]
[372129590,1752532250381,-4740.55,0.00023835,3]
[372129591,1752532250390,-296.40139784,0.00023835,3]
[372129592,1752532250400,-460.0,0.00023835,3]
[372129593,1752532250411,-587.69,0.00023835,3]
[372129594,1752532250421,-1277.88,0.00023835,3]
[372129595,1752532250430,-1083.81,0.00023835,3]
[372129596,1752532250440,-460.0,0.00023835,3]
[372129597,1752532250450,-547.91,0.00023835,3]
[372129598,1752532250459,-561.49,0.00023835,3]
[372129599,1752532250468,-699.67,0.00023835,3]
[372129600,1752532250478,-460.0,0.00023835,3]
[372129601,1752532250488,-460.0,0.00023835,3]
[372129602,1752532250497,-780.27,0.00023835,3]
[372129603,1752532250507,-480.78,0.00023835,3]
[372129604,1752532250516,-460.0,0.00023835,3]
[372129605,1752532250525,-867.48,0.00023835,3]
[372129606,1752532250535,-460.0,0.00023835,3]
[372129607,1752532250545,-1633.31,0.00023835,3]
[372129608,1752532250554,-462.27,0.00023835,3]
[372129609,1752532250563,-4080.15,0.00023835,3]
[372129610,1752532250574,-695.48,0.00023835,3]
[372129611,1752532250585,-2062.19,0.00023835,3]
[372129612,1752532250594,-694.43,0.00023835,3]
[372129613,1752532250605,-460.0,0.00023835,3]
[372129614,1752532250614,-551.7,0.00023835,3]
[372129615,1752532250624,-3466.55,0.00023835,3]
[372129616,1752532250633,-840.62,0.00023835,3]
[372129617,1752532250643,-476.17,0.00023835,3]
[372129618,1752532250653,-2617.13,0.00023835,3]
[372129619,1752532250664,-460.0,0.00023835,3]
[372129620,1752532250675,-460.0,0.00023835,3]
[372129621,1752532250684,-499.24,0.00023835,3]
[372129622,1752532250694,-460.0,0.00023835,3]
[372129623,1752532250704,-2264.69,0.00023835,3]
[372129624,1752532250714,-460.0,0.00023835,3]
[372129625,1752532250724,-703.76,0.00023835,3]
[372129626,1752532250733,-801.47,0.00023835,3]
[372129627,1752532250745,-537.34,0.00023835,3]
[372129628,1752532250755,-5277.36,0.00023835,3]
[372129629,1752532250765,-460.0,0.00023835,3]
[372129630,1752532250775,-979.14,0.00023835,3]
[372129631,1752532250784,-585.2,0.00023835,3]
[372129632,1752532250793,-634.32,0.00023835,3]
[372129633,1752532250803,-460.0,0.00023835,3]
[372129634,1752532250812,-593.07,0.00023835,3]
[372129635,1752532250822,-460.0,0.00023835,3]
[372129636,1752532250832,-460.0,0.00023835,3]
[372129637,1752532250843,-460.0,0.00023835,3]
[372129638,1752532250855,-506.00898929,0.0002386,5]
[372129639,1752532250865,-1000.0,0.00023885,2]
[372129640,1752532250874,-1000.0,0.00023885,2]
[372129641,1752532250884,-560.43858215,0.00023903,2]
[372129642,1752532250894,-1418.9076181,0.00023969,10]
[372129643,1752532250903,-160.0,0.00024,10]
[372129644,1752532250913,-160.0,0.00024,10]
[372129645,1752532250923,-215.47013733,0.00024,7]
[372129646,1752532250932,-215.47013733,0.00024,10]
[372129647,1752532250942,-525.46609069,0.00024,7]
[372129648,1752532250952,-230.73061749,0.00024,7]
[372129649,1752532250961,-838.70323114,0.00024,7]
[372129650,1752532250970,-560.43858215,0.00024003,2]
[372129651,1752532250980,-2000.0,0.0002405,2]
[372129652,1752532250990,-215.0738,0.00024077,2]
[372129653,1752532251000,-1418.9076181,0.00024107,10]
[372129654,1752532251010,-599.64,0.00024109,3]
[372129655,1752532251094,-460.0,0.00024109,3]
[372129656,1752532251104,-460.0,0.00024109,3]
[372129657,1752532251114,-849.55,0.00024109,3]
[372129658,1752532251124,-460.0,0.00024109,3]
[372129659,1752532251134,-470.65,0.00024109,3]
[372129660,1752532251145,-460.0,0.00024109,3]
[372129662,1752532251154,-4225.54,0.00024109,3]
[372129663,1752532251165,-460.0,0.00024109,3]
[372129665,1752532251174,-2685.53,0.00024109,3]
[372129666,1752532251184,-460.0,0.00024109,3]
[372129668,1752532251193,-469.39,0.00024109,3]
[372129670,1752532251203,-6892.34,0.00024109,3]
[372129671,1752532251212,-460.0,0.00024109,3]
[372129672,1752532251221,-460.0,0.00024109,3]
[372129673,1752532251230,-460.0,0.00024109,3]
[372129674,1752532251240,-460.0,0.00024109,3]
[372129675,1752532251250,-460.0,0.00024109,3]
[372129676,1752532251260,-460.0,0.00024109,3]
[372129677,1752532251270,-3108.77,0.00024109,3]
[372129678,1752532251280,-460.0,0.00024109,3]
[372129679,1752532251289,-460.0,0.00024109,3]
[372129680,1752532251299,-2811.79,0.00024109,3]
[372129681,1752532251309,-4740.55,0.00024109,3]
[372129682,1752532251318,-460.0,0.00024109,3]
[372129683,1752532251328,-587.69,0.00024109,3]
[372129684,1752532251337,-1277.88,0.00024109,3]
[372129685,1752532251347,-1083.81,0.00024109,3]
[372129686,1752532251357,-460.0,0.00024109,3]
[372129687,1752532251367,-547.91,0.00024109,3]
[372129688,1752532251377,-561.49,0.00024109,3]
[372129689,1752532251386,-699.67,0.00024109,3]
[372129690,1752532251396,-460.0,0.00024109,3]
[372129691,1752532251406,-780.27,0.00024109,3]
[372129692,1752532251415,-460.0,0.00024109,3]
[372129693,1752532251425,-480.78,0.00024109,3]
[372129694,1752532251434,-460.0,0.00024109,3]
[372129695,1752532251447,-867.48,0.00024109,3]
[372129696,1752532251457,-1633.31,0.00024109,3]
[372129697,1752532251467,-462.27,0.00024109,3]
[372129698,1752532251477,-4080.15,0.00024109,3]
[372129699,1752532251487,-695.48,0.00024109,3]
[372129700,1752532251497,-2062.19,0.00024109,3]
[372129701,1752532251507,-694.43,0.00024109,3]
[372129702,1752532251516,-460.0,0.00024109,3]
[372129703,1752532251526,-551.7,0.00024109,3]
[372129704,1752532251536,-3466.55,0.00024109,3]
[372129705,1752532251547,-840.62,0.00024109,3]
[372129706,1752532251556,-476.17,0.00024109,3]
[372129707,1752532251566,-2617.13,0.00024109,3]
[372129708,1752532251575,-460.0,0.00024109,3]
[372129709,1752532251585,-323.61,0.00024109,3]
[372129710,1752532251595,-499.24,0.00024109,3]
[372129711,1752532251604,-460.0,0.00024109,3]
[372129712,1752532251614,-2264.69,0.00024109,3]
[372129713,1752532251624,-460.0,0.00024109,3]
[372129714,1752532251633,-703.76,0.00024109,3]
[372129715,1752532251643,-801.47,0.00024109,3]
[372129716,1752532251653,-537.34,0.00024109,3]
[372129717,1752532251664,-5277.36,0.00024109,3]
[372129718,1752532251676,-460.0,0.00024109,3]
[372129719,1752532251686,-979.14,0.00024109,3]
[372129720,1752532251696,-585.2,0.00024109,3]
[372129721,1752532251705,-634.32,0.00024109,3]
[372129722,1752532251716,-460.0,0.00024109,3]
[372129723,1752532251726,-593.07,0.00024109,3]